bitfinex-derivatives/quotes_BTCF0:USTF0_20251230
["timestamp","ask_amount","ask_price","bid_price","bid_amount"]
[1767101834324,0.0113683,88077.0,88060.0,0.0113703]
[1767101834821,0.0113685,88075.0,88060.0,0.16487346]
[1767101835029,0.0113685,88075.0,88060.0,0.15350316]
[1767101836027,0.0113685,88075.0,88059.0,0.05696]
[1767101836631,0.21046316,88080.0,88060.0,0.15350316]
[1767101837026,0.0113687,88073.0,88060.0,0.15350316]
[1767101837327,0.21046316,88080.0,88060.0,0.15350316]
[1767101837525,0.05696,88080.0,88060.0,0.15350316]
[1767101838027,0.02635616,88079.0,88060.0,0.15350316]
[1767101838228,0.02635616,88078.0,88063.0,0.0113699]
[1767101838426,0.02635616,88077.0,88060.0,0.16487346]
[1767101838628,0.02635616,88076.0,88060.0,0.16487346]
[1767101838830,0.02635616,88075.0,88060.0,0.16487346]
[1767101839029,0.02635616,88074.0,88062.0,0.01137]
[1767101839226,0.02635616,88073.0,88062.0,0.01137]
[1767101839432,0.02635616,88072.0,88062.0,0.01137]
[1767101839731,0.02635616,88071.0,88062.0,0.01137]
[1767101839919,0.0113681,88078.0,88062.0,0.01137]
[1767101840118,0.02635261,88077.0,88062.0,0.01137]
[1767101840323,0.02635261,88076.0,88062.0,0.01137]
[1767101840522,0.02635261,88075.0,88062.0,0.01137]
[1767101840720,0.02635261,88074.0,88062.0,0.01137]
[1767101840933,0.02635261,88073.0,88062.0,0.01137]
[1767101841233,0.02635261,88072.0,88062.0,0.01137]
[1767101841429,0.02635261,88071.0,88062.0,0.01137]
[1767101841630,0.0113683,88076.0,88062.0,0.01137]
[1767101841831,0.02634966,88075.0,88062.0,0.01137]
[1767101842032,0.02634966,88074.0,88062.0,0.01137]
[1767101842231,0.02634966,88073.0,88062.0,0.01137]
[1767101842431,0.02634966,88072.0,88062.0,0.01137]
[1767101842633,0.011368,88079.0,88065.0,0.0113697]
[1767101842832,0.011368,88079.0,88066.0,0.05692]
[1767101844137,0.0113682,88077.0,88066.0,0.05692]
[1767101848141,0.0113681,88078.0,88066.0,0.05692]
[1767101849236,0.09664,88082.0,88066.0,0.05692]
[1767101849440,0.0113681,88079.0,88066.0,0.05692]
[1767101850340,0.09664,88082.0,88066.0,0.05692]
[1767101852141,0.0113678,88080.0,88066.0,0.05692]
[1767101852542,0.09664,88082.0,88066.0,0.05692]
[1767101854045,0.09664,88082.0,88070.0,0.15350316]
[1767101854533,0.05696,88085.0,88070.0,0.15350316]
[1767101854734,0.0259909,88084.0,88066.0,0.05692]
[1767101854935,0.0259909,88083.0,88066.0,0.05692]
[1767101855134,0.0259909,88082.0,88066.0,0.05692]
[1767101855335,0.0259909,88081.0,88066.0,0.05692]
[1767101855534,0.0259909,88080.0,88066.0,0.05692]
[1767101855735,0.0259909,88079.0,88066.0,0.05692]
[1767101856043,0.0259909,88078.0,88066.0,0.05692]
[1767101856342,0.0259909,88077.0,88066.0,0.05692]
[1767101856541,0.0259909,88076.0,88066.0,0.05692]
[1767101856743,0.05696,88085.0,88066.0,0.05692]
[1767101856944,0.0113681,88078.0,88066.0,0.05692]
[1767101857243,0.03736594,88077.0,88066.0,0.05692]
[1767101857446,0.02599774,88076.0,88066.0,0.05692]
[1767101858443,0.0113685,88075.0,88060.0,0.15350316]
[1767101858744,0.05696,88085.0,88060.0,0.15350316]
[1767101858745,0.02599774,88074.0,88061.0,0.15356]
[1767101858943,0.02599774,88073.0,88061.0,0.15356]
[1767101859244,0.15350316,88080.0,88061.0,0.15356]
[1767101859245,0.0113686,88074.0,88061.0,0.15356]
[1767101859544,0.02599979,88073.0,88061.0,0.15356]
[1767101859743,0.0113686,88074.0,88061.0,0.15356]
[1767101859944,0.02600089,88073.0,88061.0,0.15356]
[1767101860245,0.15350316,88080.0,88061.0,0.15356]
[1767101860544,0.02600089,88079.0,88061.0,0.15356]
[1767101860740,0.02600089,88078.0,88061.0,0.15356]
[1767101860944,0.0113686,88074.0,88061.0,0.15356]
[1767101861146,0.02600089,88073.0,88061.0,0.15356]
[1767101861542,0.03736969,88073.0,88061.0,0.15356]
[1767101861839,0.0113688,88073.0,88061.0,0.15356]
[1767101862346,0.0113689,88072.0,88061.0,0.15356]
[1767101863546,0.0113692,88070.0,88061.0,0.15356]
[1767101863748,0.05696,88085.0,88057.0,0.00017038]
[1767101864050,0.0113695,88067.0,88057.0,0.00017038]
[1767101864234,0.0113698,88065.0,88057.0,0.00017038]
[1767101869855,0.0113695,88068.0,88057.0,0.00017038]
[1767101870950,0.0113696,88066.0,88057.0,0.00017038]
[1767101873547,0.0113693,88069.0,88057.0,0.00017038]
[1767101874251,0.0113689,88072.0,88057.0,0.01154108]
[1767101874557,0.02600509,88071.0,88057.0,0.01154108]
[1767101874750,0.02600509,88070.0,88057.0,0.01154108]
[1767101874945,0.0113689,88072.0,88057.0,0.01154108]
[1767101875145,0.02600437,88071.0,88057.0,0.01154108]
[1767101875345,0.02600437,88070.0,88057.0,0.01154108]
[1767101875545,0.0113689,88072.0,88057.0,0.01154108]
[1767101875752,0.02600428,88071.0,88057.0,0.00017038]
[1767101875953,0.02600428,88070.0,88057.0,0.00017038]
[1767101876154,0.0113689,88072.0,88057.0,0.00017038]
[1767101876344,0.03737338,88071.0,88057.0,0.00017038]
[1767101876546,0.0113693,88069.0,88057.0,0.00017038]
[1767101877349,0.0113691,88071.0,88057.0,0.00017038]
[1767101877548,0.02600415,88070.0,88057.0,0.00017038]
[1767101877756,0.0113691,88071.0,88057.0,0.00017038]
[1767101878055,0.0113694,88068.0,88057.0,0.00017038]
[1767101879355,0.0113691,88071.0,88057.0,0.00017038]
[1767101879558,0.02600438,88070.0,88057.0,0.00017038]
[1767101879857,0.0113691,88071.0,88057.0,0.00017038]
[1767101880063,0.02600437,88070.0,88057.0,0.00017038]
[1767101880256,0.0113691,88071.0,88057.0,0.00017038]
[1767101880456,0.02600462,88070.0,88057.0,0.00017038]
[1767101880760,0.0113691,88071.0,88057.0,0.00017038]
[1767101881055,0.02600462,88070.0,88057.0,0.01154108]
[1767101881257,0.0113692,88070.0,88057.0,0.00017038]
[1767101882359,0.0113695,88067.0,88057.0,0.00017038]
[1767101882558,0.0113692,88070.0,88057.0,0.00017038]
[1767101883460,0.15356,88076.0,88057.0,0.00017038]
[1767101883756,0.02602039,88075.0,88057.0,0.00017038]
[1767101883956,0.02602039,88074.0,88057.0,0.00017038]
[1767101884256,0.03738919,88073.0,88057.0,0.00017038]
[1767101884449,0.02602039,88072.0,88057.0,0.00017038]
[1767101885258,0.011369,88071.0,88057.0,0.00017038]
[1767101885558,0.02602039,88070.0,88057.0,0.00017038]
[1767101886259,0.02602039,88070.0,88058.0,0.0113706]
[1767101886449,0.02602039,88069.0,88058.0,0.0113706]
[1767101886649,0.0113688,88073.0,88058.0,0.0113706]
[1767101886650,0.02602039,88068.0,88058.0,0.0113706]
[1767101886959,0.0113688,88073.0,88057.0,0.00017038]
[1767101887161,0.02602483,88072.0,88057.0,0.00017038]
[1767101887356,0.02602483,88071.0,88057.0,0.00017038]
[1767101887659,0.02602483,88070.0,88057.0,0.00017038]
[1767101887862,0.02602483,88069.0,88057.0,0.00017038]
[1767101888057,0.02602483,88068.0,88057.0,0.00017038]
[1767101888246,0.011369,88071.0,88057.0,0.00017038]
[1767101888247,0.02602684,88067.0,88057.0,0.00017038]
[1767101888451,0.011369,88071.0,88057.0,0.00017038]
[1767101888749,0.02602875,88070.0,88057.0,0.00017038]
[1767101888945,0.02602875,88069.0,88057.0,0.00017038]
[1767101889150,0.02602875,88068.0,88057.0,0.00017038]
[1767101889355,0.09317132,88091.0,88057.0,0.00017038]
[1767101889557,0.15356,88087.0,88065.0,0.0113697]
[1767101889755,0.15356,88087.0,88065.0,0.0682897]
[1767101890861,0.0113675,88083.0,88065.0,0.0682897]
[1767101891853,0.0113675,88083.0,88068.0,0.0113693]
[1767101892053,0.0113671,88086.0,88068.0,0.0113693]
[1767101893058,0.0113676,88082.0,88065.0,0.0682897]
[1767101894270,0.0113676,88082.0,88067.0,0.0113694]
[1767101895659,0.0113672,88085.0,88067.0,0.0113694]
[1767101896257,0.0113675,88083.0,88065.0,0.05692]
[1767101896551,0.0113675,88083.0,88066.0,0.0113696]
[1767101898168,0.15583047,88088.0,88065.0,0.05692]
[1767101898555,0.0113675,88083.0,88066.0,0.0113696]
[1767101901262,0.02590038,88082.0,88066.0,0.0113696]
[1767101901469,0.02590038,88081.0,88066.0,0.0113696]
[1767101901670,0.02590038,88080.0,88066.0,0.0113696]
[1767101901861,0.02590038,88079.0,88068.0,0.0113693]
[1767101902062,0.02590038,88078.0,88068.0,0.0113693]
[1767101902368,0.02590038,88077.0,88065.0,0.0682897]
[1767101902577,0.02590038,88076.0,88067.0,0.0113694]
[1767101902762,0.15583047,88088.0,88067.0,0.0113694]
[1767101903068,0.02590024,88087.0,88065.0,0.0682897]
[1767101903368,0.02590024,88086.0,88065.0,0.0682897]
[1767101903568,0.02590024,88085.0,88065.0,0.0682897]
[1767101903771,0.02590024,88084.0,88065.0,0.0682897]
[1767101903969,0.02590024,88083.0,88065.0,0.0682897]
[1767101904157,0.02590024,88082.0,88066.0,0.0113695]
[1767101904362,0.02590024,88081.0,88066.0,0.0113695]
[1767101904560,0.02590024,88080.0,88066.0,0.0113695]
[1767101904764,0.02590024,88079.0,88066.0,0.0113695]
[1767101904965,0.02590024,88078.0,88066.0,0.0113695]
[1767101905263,0.02590024,88077.0,88066.0,0.0113695]
[1767101905570,0.02590024,88076.0,88066.0,0.0113695]
[1767101905771,0.0113676,88082.0,88066.0,0.0113695]
[1767101905961,0.0113679,88080.0,88066.0,0.0113695]
[1767101906161,0.02590054,88079.0,88066.0,0.0113695]
[1767101906470,0.02590054,88078.0,88066.0,0.0113695]
[1767101906670,0.02590054,88077.0,88066.0,0.0113695]
[1767101906871,0.02590054,88076.0,88066.0,0.0113695]
[1767101907069,0.0113679,88080.0,88066.0,0.0113695]
[1767101907268,0.02590066,88079.0,88066.0,0.0113695]
[1767101907462,0.02590066,88078.0,88066.0,0.0113695]
[1767101907662,0.02590066,88077.0,88066.0,0.0113695]
[1767101907864,0.02590066,88076.0,88066.0,0.0113695]
[1767101908063,0.0113679,88080.0,88066.0,0.0113695]
[1767101908271,0.02590088,88079.0,88065.0,0.05692]
[1767101908472,0.02590088,88078.0,88065.0,0.0682897]
[1767101908676,0.02590088,88077.0,88065.0,0.0682897]
[1767101908876,0.02590088,88076.0,88065.0,0.0682897]
[1767101909168,0.0113679,88080.0,88065.0,0.0682897]
[1767101909477,0.02590136,88079.0,88065.0,0.0682897]
[1767101909771,0.02590136,88078.0,88065.0,0.0682897]
[1767101909973,0.02590136,88077.0,88065.0,0.0682897]
[1767101910163,0.02590136,88076.0,88065.0,0.0682897]
[1767101910364,0.0113679,88080.0,88065.0,0.0682897]
[1767101910564,0.0259025,88079.0,88065.0,0.05692]
[1767101910775,0.0259025,88078.0,88065.0,0.05692]
[1767101910973,0.02590233,88077.0,88065.0,0.0682897]
[1767101911169,0.0113676,88082.0,88065.0,0.0682897]
[1767101912475,0.0113672,88085.0,88067.0,0.0113694]
[1767101913273,0.01363727,88088.0,88065.0,0.05692]
[1767101913474,0.00227047,88088.0,88065.0,0.05692]
[1767101913777,0.00227047,88088.0,88072.0,0.0113687]
[1767101914075,0.00227047,88088.0,88072.0,0.05692]
[1767101915269,0.01363737,88088.0,88072.0,0.05692]
[1767101918581,0.00227047,88088.0,88073.0,0.0113686]
[1767101919074,0.04417691,88095.0,88079.0,0.0113679]
[1767101919275,0.04417691,88095.0,88081.0,0.0113677]
[1767101919578,0.04417691,88095.0,88083.0,0.0113673]
[1767101920371,0.04417691,88095.0,88082.0,0.0113675]
[1767101920571,0.05554281,88095.0,88080.0,0.05692]
[1767101920767,0.04418526,88109.0,88080.0,0.05692]
[1767101920973,0.04418526,88109.0,88092.0,0.0113661]
[1767101921477,0.04418526,88109.0,88088.0,0.05692]
[1767101921672,0.04418526,88109.0,88092.0,0.0113661]
[1767101921872,0.0113644,88106.0,88089.0,0.0113666]
[1767101922074,0.05554936,88109.0,88091.0,0.0113663]
[1767101922269,0.15352,88110.0,88088.0,0.0682867]
[1767101922474,0.30687997,88110.0,88090.0,0.15335997]
[1767101922984,0.02560854,88109.0,88090.0,0.15335997]
[1767101923182,0.0113646,88106.0,88090.0,0.15335997]
[1767101923379,0.02560854,88105.0,88088.0,0.0682867]
[1767101923570,0.0113647,88104.0,88088.0,0.05692]
[1767101923985,0.011364,88110.0,88092.0,0.0113662]
[1767101924177,0.0113642,88108.0,88090.0,0.15335997]
[1767101924379,0.02559977,88107.0,88091.0,0.0113663]
[1767101924682,0.02559977,88106.0,88091.0,0.0113663]
[1767101924877,0.15335997,88110.0,88091.0,0.0113663]
[1767101925087,0.03695621,88109.0,88093.0,0.0113661]
[1767101925285,0.02559211,88108.0,88093.0,0.0113661]
[1767101925585,0.02559211,88107.0,88093.0,0.0113661]
[1767101925884,0.02559211,88106.0,88090.0,0.16472637]
[1767101926095,0.02559211,88105.0,88090.0,0.16472637]
[1767101926278,0.0113641,88109.0,88092.0,0.0113662]
[1767101926477,0.02558062,88108.0,88092.0,0.0113662]
[1767101926678,0.02558062,88107.0,88092.0,0.0113662]
[1767101926875,0.02558062,88106.0,88094.0,0.0113659]
[1767101927080,0.02558062,88106.0,88088.0,0.05692]
[1767101927081,0.011364,88110.0,88091.0,0.0113664]
[1767101927280,0.02557642,88109.0,88091.0,0.0113664]
[1767101927481,0.02557642,88108.0,88091.0,0.0113664]
[1767101927682,0.02557642,88107.0,88091.0,0.0113664]
[1767101927884,0.02557642,88106.0,88093.0,0.011366]
[1767101928087,0.16472397,88110.0,88093.0,0.011366]
[1767101928284,0.02557641,88109.0,88093.0,0.011366]
[1767101928483,0.02557641,88108.0,88093.0,0.011366]
[1767101928774,0.02557641,88107.0,88095.0,0.0113658]
[1767101928976,0.02557641,88106.0,88097.0,0.0113656]
[1767101929182,0.00714712,88114.0,88096.0,0.05692]
[1767101929384,0.02556819,88113.0,88099.0,0.0113653]
[1767101929588,0.02556819,88112.0,88099.0,0.0113653]
[1767101929788,0.02556819,88111.0,88096.0,0.0462853]
[1767101929988,0.02556819,88110.0,88096.0,0.0462853]
[1767101930190,0.02556819,88109.0,88096.0,0.0462853]
[1767101930486,0.01851052,88114.0,88096.0,0.0462853]
[1767101930688,0.0113629,88118.0,88102.0,0.0113649]
[1767101930889,0.02556359,88117.0,88102.0,0.0113649]
[1767101931092,0.0113629,88118.0,88100.0,0.0113652]
[1767101931281,0.02556355,88117.0,88100.0,0.16472517]
[1767101931481,0.0113629,88118.0,88100.0,0.16472517]
[1767101931784,0.02555761,88117.0,88100.0,0.15335997]
[1767101931990,0.15335997,88120.0,88100.0,0.15335997]
[1767101932186,0.0255576,88119.0,88100.0,0.15335997]
[1767101932391,0.0255576,88118.0,88107.0,0.0113642]
[1767101932590,0.15335997,88120.0,88109.0,0.011364]
[1767101933288,0.15352,88124.0,88112.0,0.0113636]
[1767101933491,0.02554664,88123.0,88112.0,0.0113636]
[1767101933690,0.02554664,88122.0,88112.0,0.0113636]
[1767101933989,0.02554664,88121.0,88112.0,0.0113636]
[1767101934184,0.15352,88124.0,88112.0,0.0113636]
[1767101934384,0.1401392,88188.0,88104.0,0.05692]
[1767101934385,0.0966,88133.0,88120.0,0.0113625]
[1767101934586,0.15352,88132.0,88120.0,0.15335997]
[1767101934784,0.05687,88132.0,88121.0,0.0113624]
[1767101935491,0.05687,88132.0,88118.0,0.00017028]
[1767101935692,0.05687,88132.0,88119.0,0.0113627]
[1767101936695,0.05692,88135.0,88127.0,0.0113617]
[1767101937090,0.14095208,88144.0,88127.0,0.0113617]
[1767101937396,0.0113598,88143.0,88121.0,0.0966]
[1767101937590,0.14095208,88144.0,88121.0,0.0966]
[1767101937892,0.14180159,88144.0,88127.0,0.0113617]
[1767101938094,0.15335997,88140.0,88128.0,0.05692]
[1767101938280,0.15335997,88140.0,88120.0,0.0113626]
[1767101938281,0.0113606,88136.0,88120.0,0.0113626]
[1767101938483,0.15335997,88130.0,88118.0,0.05709028]
[1767101938689,0.15335997,88130.0,88117.0,0.05692]
[1767101941092,0.15335997,88130.0,88121.0,0.0113624]
[1767101941287,0.00016995,88132.0,88121.0,0.0113624]
[1767101941793,0.00016995,88132.0,88118.0,0.0227029]
[1767101942190,0.00016995,88132.0,88118.0,0.01134]
[1767101942996,0.05692,88141.0,88120.0,0.15335997]
[1767101943292,0.04433634,88144.0,88130.0,0.15335997]
[1767101943497,0.04433634,88144.0,88134.0,0.0113608]
[1767101944292,0.05692,88149.0,88136.0,0.0113605]
[1767101944483,0.09656,88151.0,88136.0,0.0113605]
[1767101944686,0.1079187,88151.0,88133.0,0.01153108]
[1767101945290,0.15335997,88150.0,88134.0,0.05688]
[1767101945687,0.0113588,88150.0,88134.0,0.05688]
[1767101945887,0.16471877,88150.0,88134.0,0.05688]
[1767101946297,0.05688,88154.0,88133.0,1.8e-07]
[1767101946490,0.0113594,88146.0,88133.0,0.05688]
[1767101949891,0.00243878,88148.0,88133.0,0.05688]
[1767101951699,0.00243878,88148.0,88133.0,0.0682409]
[1767101952293,0.01379788,88148.0,88133.0,0.05688]
[1767101952488,0.16471977,88143.0,88133.0,0.05688]
[1767101952694,0.15335997,88143.0,88131.0,0.00017018]
[1767101953902,0.16471967,88143.0,88131.0,0.00017018]
[1767101954293,0.16471967,88143.0,88131.0,1.8e-07]
[1767101956205,0.16471967,88143.0,88132.0,0.01134]
[1767101956804,0.0113597,88143.0,88132.0,0.01134]
[1767101957005,0.15335997,88142.0,88131.0,1.8e-07]
[1767101957302,0.15335997,88142.0,88129.0,0.15344]
[1767101963412,0.15335997,88142.0,88135.0,0.15]
[1767101963706,0.0113596,88144.0,88135.0,0.15]
[1767101964314,0.02565315,88143.0,88135.0,0.15]
[1767101964606,0.0113596,88144.0,88135.0,0.15]
[1767101964807,0.02565383,88143.0,88135.0,0.15]
[1767101964996,0.0113596,88144.0,88135.0,0.15]
[1767101965197,0.02565382,88143.0,88135.0,0.15]
[1767101965409,0.0113596,88144.0,88135.0,0.15]
[1767101965607,0.02566042,88143.0,88135.0,0.15]
[1767101965796,0.0113597,88143.0,88135.0,0.15]
[1767101966310,0.02566828,88142.0,88135.0,0.15]
[1767101966608,0.05688,88146.0,88135.0,0.07121787]
[1767101966804,0.05688,88146.0,88135.0,0.06321787]
[1767101966805,0.02566882,88145.0,88135.0,0.06321787]
[1767101967014,0.02566882,88144.0,88135.0,0.06321787]
[1767101967202,0.02566882,88143.0,88135.0,0.06321787]
[1767101967402,0.05688,88146.0,88135.0,0.06321787]
[1767101967604,0.02567044,88145.0,88135.0,0.06321787]
[1767101967805,0.02567044,88144.0,88135.0,0.06321787]
[1767101968102,0.02567044,88143.0,88135.0,0.06321787]
[1767101968302,0.05688,88146.0,88135.0,0.06321787]
[1767101968495,0.02567137,88145.0,88135.0,0.06321787]
[1767101968699,0.02567137,88144.0,88135.0,0.06321787]
[1767101969010,0.02567137,88143.0,88135.0,0.06321787]
[1767101969209,0.0682393,88146.0,88135.0,0.06321787]
[1767101969414,0.02567518,88145.0,88135.0,0.06321787]
[1767101969705,0.05688,88147.0,88135.0,0.06321787]
[1767101970313,0.05688,88147.0,88137.0,0.0113604]
[1767101971110,0.05688,88147.0,88138.0,0.0113603]
[1767101971610,0.05688,88147.0,88135.0,0.13145847]
[1767101974007,0.05688,88147.0,88135.0,0.09945847]
[1767101976716,0.05688,88147.0,88138.0,0.0113602]
[1767101977806,0.05688,88147.0,88135.0,0.09945847]
[1767101978114,0.05688,88147.0,88138.0,0.0113603]
[1767101978414,0.0113616,88129.0,88119.0,0.05688]
[1767101978715,0.16472157,88129.0,88119.0,0.05688]
[1767101979612,0.15335997,88129.0,88119.0,0.05688]
[1767101980216,0.0113612,88132.0,88119.0,0.05688]
[1767101980217,0.15335997,88130.0,88119.0,0.05688]
[1767101980710,0.0113622,88124.0,88110.0,0.05688]
[1767101980915,0.15335997,88120.0,88110.0,0.05688]
[1767101981616,0.15335997,88120.0,88106.0,0.09656]
[1767101981807,0.0113625,88121.0,88106.0,0.09656]
[1767101982117,0.15335997,88120.0,88106.0,0.09656]
[1767101982506,0.0113626,88121.0,88106.0,0.09656]
[1767101982810,0.0113626,88121.0,88105.0,0.05688]
[1767101983711,0.0113631,88117.0,88104.0,0.00017018]
[1767101983910,0.05688,88116.0,88104.0,0.00017018]
[1767101989121,0.05688,88116.0,88091.0,0.0113663]
[1767101989122,0.0113639,88111.0,88091.0,0.0113663]
[1767101989322,0.15344,88110.0,88095.0,0.0113658]
[1767101989512,0.0113634,88115.0,88095.0,0.0113658]
[1767101989714,0.0113635,88113.0,88095.0,0.0113658]
[1767101989915,0.09656,88112.0,88095.0,0.01153598]
[1767101990115,0.0113639,88111.0,88095.0,0.00017018]
[1767101991616,0.05688,88110.0,88095.0,0.00017018]
[1767101991820,0.09656,88109.0,88095.0,0.00017018]
[1767101992131,0.09656,88109.0,88095.0,0.01153598]
[1767101992422,0.09656,88109.0,88099.0,0.0113652]
[1767101992638,0.05688,88108.0,88100.0,0.0113651]
[1767101992831,0.05688,88107.0,88100.0,0.0113651]
[1767101993126,0.05688,88107.0,88097.0,0.0113656]
[1767101993522,0.05688,88107.0,88099.0,0.0113653]
[1767101997933,0.05688,88107.0,88095.0,0.00017018]
[1767102000238,0.05688,88107.0,88098.0,0.0113655]
[1767102000735,0.00017018,88122.0,88098.0,0.0113655]
[1767102000934,0.15344,88121.0,88098.0,0.0113655]
[1767102001138,0.00017018,88122.0,88101.0,0.011365]
[1767102001335,0.15344,88121.0,88102.0,0.0113649]
[1767102001733,0.05688,88120.0,88104.0,0.0113647]
[1767102002039,0.0113628,88119.0,88101.0,0.011365]
[1767102002241,0.0113628,88119.0,88103.0,0.0113648]
[1767102002845,0.05688,88118.0,88105.0,0.0113645]
[1767102003141,0.15344,88117.0,88105.0,0.0113645]
[1767102004042,0.15344,88117.0,88095.0,0.00017018]
[1767102004240,0.15344,88116.0,88105.0,0.0113645]
[1767102006039,0.15344,88116.0,88093.0,0.0113661]
[1767102006543,0.15344,88116.0,88094.0,0.011366]
[1767102007236,0.15344,88116.0,88096.0,0.00011378]
[1767102007942,0.15344,88116.0,88103.0,0.0113647]
[1767102008241,0.0113629,88118.0,88103.0,0.0113647]
[1767102008442,0.15348,88117.0,88103.0,0.0113647]
[1767102008740,0.0113632,88116.0,88100.0,0.0113651]
[1767102009038,0.0113639,88110.0,88097.0,0.0113655]
[1767102009241,0.15348,88117.0,88099.0,0.0113653]
[1767102009242,0.05688,88109.0,88099.0,0.0113653]
[1767102009546,0.05688,88109.0,88096.0,0.00011378]
[1767102010044,0.05688,88109.0,88103.0,0.0113647]
[1767102011741,0.0113626,88121.0,88107.0,0.0113643]
[1767102011940,0.02539079,88120.0,88109.0,0.011364]
[1767102012245,0.12199079,88119.0,88109.0,0.011364]
[1767102012447,0.17887079,88118.0,88109.0,0.011364]
[1767102012641,0.17887079,88118.0,88096.0,0.00011378]
[1767102012642,0.00017018,88122.0,88113.0,0.0113634]
[1767102012943,0.05688,88121.0,88110.0,0.0113639]
[1767102013144,0.05688,88121.0,88097.0,0.0966]
[1767102013844,0.0113632,88116.0,88101.0,0.011365]
[1767102016046,0.0113635,88114.0,88097.0,0.1079655]
[1767102016237,0.05688,88121.0,88097.0,0.1079655]
[1767102016238,0.0113638,88112.0,88097.0,0.1079655]
[1767102019047,0.0113634,88115.0,88097.0,0.1079655]
[1767102019937,0.0113636,88113.0,88097.0,0.1079655]
[1767102021951,0.0113632,88116.0,88100.0,0.0113652]
[1767102022457,0.0113629,88119.0,88100.0,0.0113652]
[1767102022653,0.02540545,88118.0,88100.0,0.0113652]
[1767102022844,0.03676855,88117.0,88100.0,0.0113652]
[1767102023145,0.02540545,88116.0,88100.0,0.0113652]
[1767102023450,0.0113631,88117.0,88100.0,0.0113652]
[1767102023652,0.0113633,88115.0,88097.0,0.1079655]
[1767102023854,0.0113633,88115.0,88099.0,0.0113653]
[1767102025457,0.025406,88114.0,88099.0,0.0113653]
[1767102025646,0.0113633,88115.0,88099.0,0.0113653]
[1767102025847,0.02540595,88114.0,88099.0,0.0113653]
[1767102026153,0.0113633,88115.0,88099.0,0.0113653]
[1767102026355,0.02540613,88114.0,88099.0,0.0113653]
[1767102026652,0.0113633,88115.0,88099.0,0.0113653]
[1767102026853,0.02540619,88114.0,88099.0,0.0113653]
[1767102027148,0.0113633,88115.0,88099.0,0.0113653]
[1767102027347,0.02540639,88114.0,88099.0,0.0113653]
[1767102027547,0.0113633,88115.0,88099.0,0.0113653]
[1767102027747,0.02540653,88114.0,88099.0,0.0113653]
[1767102027945,0.0113633,88115.0,88099.0,0.0113653]
[1767102028150,0.02540653,88114.0,88099.0,0.0113653]
[1767102028339,0.0113636,88113.0,88099.0,0.0113653]
[1767102030858,0.0113636,88113.0,88099.0,0.0113653]
[1767102031056,0.0113633,88116.0,88099.0,0.0113653]
[1767102031358,0.02540832,88115.0,88097.0,0.0966]
[1767102031655,0.02540832,88114.0,88103.0,0.0113648]
[1767102031857,0.0113629,88118.0,88103.0,0.0113648]
[1767102032055,0.02540824,88117.0,88103.0,0.0113648]
[1767102032256,0.02540824,88116.0,88103.0,0.0113648]
[1767102032557,0.02540824,88115.0,88103.0,0.0113648]
[1767102034158,0.02540824,88115.0,88100.0,0.0113651]
[1767102035461,0.0113632,88116.0,88100.0,0.0113651]
[1767102035660,0.0113632,88116.0,88097.0,0.0966]
[1767102037161,0.0113632,88116.0,88101.0,0.011365]
[1767102038462,0.0113632,88116.0,88104.0,0.0113647]
[1767102038854,0.0101132,88116.0,88104.0,0.0113647]
[1767102039258,0.05688,88121.0,88104.0,0.0113647]
[1767102039463,0.0255507,88120.0,88104.0,0.0113647]
[1767102039654,0.05688,88121.0,88104.0,0.0113647]
[1767102039655,0.0255507,88119.0,88104.0,0.0113647]
[1767102039860,0.0255507,88118.0,88104.0,0.0113647]
[1767102040060,0.0255507,88117.0,88104.0,0.0113647]
[1767102040360,0.0255507,88116.0,88104.0,0.0113647]
[1767102040561,0.011363,88118.0,88104.0,0.0113647]
[1767102040761,0.0255515,88117.0,88104.0,0.0113647]
[1767102040963,0.0255515,88116.0,88104.0,0.0113647]
[1767102041156,0.0113629,88118.0,88103.0,0.0113648]
[1767102041351,0.02555236,88117.0,88103.0,0.0113648]
[1767102041550,0.02555236,88116.0,88103.0,0.0113648]
[1767102041756,0.0113629,88118.0,88103.0,0.0113648]
[1767102041955,0.02555236,88117.0,88103.0,0.0113648]
[1767102042160,0.02555236,88116.0,88103.0,0.0113648]
[1767102042362,0.0113629,88118.0,88103.0,0.0113648]
[1767102042561,0.02555284,88117.0,88103.0,0.0113648]
[1767102042761,0.02555284,88116.0,88105.0,0.0113645]
[1767102043062,0.02555678,88115.0,88105.0,0.0113645]
[1767102043266,0.0113629,88118.0,88105.0,0.0113645]
[1767102043468,0.02555678,88117.0,88105.0,0.0113645]
[1767102043761,0.02555678,88116.0,88105.0,0.0113645]
[1767102043964,0.02555678,88115.0,88105.0,0.0113645]
[1767102044165,0.0113629,88118.0,88105.0,0.0113645]
[1767102044367,0.02555707,88117.0,88105.0,0.0113645]
[1767102044666,0.02555707,88116.0,88105.0,0.0113645]
[1767102044857,0.02555707,88115.0,88105.0,0.0113645]
[1767102045058,0.0113629,88118.0,88105.0,0.0113645]
[1767102045266,0.05688,88121.0,88109.0,0.011364]
[1767102045267,0.02555743,88117.0,88109.0,0.011364]
[1767102045467,0.15333172,88120.0,88100.0,0.16469692]
[1767102045668,0.02555641,88119.0,88109.0,0.011364]
[1767102045879,0.02555641,88118.0,88109.0,0.011364]
[1767102046078,0.02555641,88117.0,88109.0,0.011364]
[1767102046277,0.15333172,88120.0,88109.0,0.011364]
[1767102046574,0.15333172,88120.0,88097.0,0.0966]
[1767102046575,0.02555548,88119.0,88106.0,0.0113644]
[1767102046875,0.02550548,88118.0,88106.0,0.0113644]
[1767102047076,0.16469442,88120.0,88106.0,0.0113644]
[1767102048280,0.16469442,88120.0,88103.0,0.0113647]
[1767102049570,0.011363,88117.0,88103.0,0.0113647]
[1767102049765,0.15333172,88120.0,88100.0,0.0113651]
[1767102051178,0.0113633,88116.0,88100.0,0.0113651]
[1767102051481,0.0113633,88116.0,88102.0,0.0113649]
[1767102052172,0.15333172,88120.0,88105.0,0.0113645]
[1767102053982,0.0113631,88117.0,88102.0,0.0113649]
[1767102054976,0.1079231,88117.0,88102.0,0.0113649]
[1767102056085,0.15331011,88117.0,88104.0,0.0113647]
[1767102056284,0.1079231,88117.0,88104.0,0.0113647]
[1767102058586,0.15333172,88114.0,88097.0,0.0966]
[1767102058773,0.09656,88117.0,88097.0,0.0966]
[1767102058774,0.15333172,88110.0,88097.0,0.0966]
[1767102059380,0.15333172,88110.0,88096.0,0.00011378]
[1767102059783,0.05688,88113.0,88096.0,0.00011378]
[1767102059985,0.05688,88112.0,88105.0,0.0113645]
[1767102060682,0.15333172,88120.0,88100.0,0.15333172]
[1767102060683,0.15333172,88120.0,88107.0,0.0113643]
[1767102060881,0.17899252,88119.0,88107.0,0.0113643]
[1767102061082,0.02555252,88118.0,88107.0,0.0113643]
[1767102061278,0.02555252,88117.0,88107.0,0.0113643]
[1767102061479,0.15344,88119.0,88107.0,0.0113643]